[Event "Titled Tuesday Blitz March 08 Early 2022"]
[White "Shuvalova, Polina"]
[Black "Horak, Martin"]
[WhiteFideId "24171760"]
[BlackFideId "367095"]
[WhiteElo "2355"]
[BlackElo "1997"]
[Result "1-0"]
[Round "07"]
[TimeControl "180+1"]
[Date "2022.03.09"]
[WhiteClock "0:00:52"]
[BlackClock "0:00:02"]

1. d4 {[%clk 0:03:00]}  Nf6 {[%clk 0:02:59]} 2. Nf3 {[%clk 0:03:00]}  e6 {[%clk 0:02:51]} 3. Bf4 {[%clk 0:03:00]}  c5 {[%clk 0:02:39]} 4. e3 {[%clk 0:03:00]}  Nc6 {[%clk 0:02:34]} 5. Nbd2 {[%clk 0:02:58]}  Be7 {[%clk 0:02:23]} 6. c3 {[%clk 0:02:58]}  O-O {[%clk 0:02:22]} 7. Bd3 {[%clk 0:02:55]}  d5 {[%clk 0:02:17]} 8. h4 {[%clk 0:02:55]}  cxd4 {[%clk 0:01:48]} 9. exd4 {[%clk 0:02:52]}  Bd6 {[%clk 0:01:27]} 10. Bxd6 {[%clk 0:02:47]}  Qxd6 {[%clk 0:01:26]} 11. Qe2 {[%clk 0:02:47]}  Re8 {[%clk 0:01:13]} 12. Ne5 {[%clk 0:02:46]}  Qc7 {[%clk 0:00:53]} 13. h5 {[%clk 0:02:41]}  Bd7 {[%clk 0:00:51]} 14. h6 {[%clk 0:02:40]}  g6 {[%clk 0:00:50]} 15. f4 {[%clk 0:02:30]}  Ne4 {[%clk 0:00:47]} 16. Bxe4 {[%clk 0:02:19]}  dxe4 {[%clk 0:00:48]} 17. Nxe4 {[%clk 0:02:20]}  Nxe5 {[%clk 0:00:47]} 18. fxe5 {[%clk 0:02:19]}  f5 {[%clk 0:00:46]} 19. Nf6+ {[%clk 0:02:12]}  Kh8 {[%clk 0:00:46]} 20. Nxe8 {[%clk 0:02:11]}  Bxe8 {[%clk 0:00:46]} 21. d5 {[%clk 0:02:09]}  exd5 {[%clk 0:00:43]} 22. e6 {[%clk 0:02:09]}  Qg3+ {[%clk 0:00:33]} 23. Kd2 {[%clk 0:02:08]}  Bc6 {[%clk 0:00:27]} 24. Rae1 {[%clk 0:02:08]}  Kg8 {[%clk 0:00:22]} 25. Rh3 {[%clk 0:02:06]}  Qg5+ {[%clk 0:00:21]} 26. Kc2 {[%clk 0:02:06]}  d4 {[%clk 0:00:19]} 27. Qe5 {[%clk 0:02:05]}  Qe7 {[%clk 0:00:17]} 28. Qxd4 {[%clk 0:02:02]}  Rd8 {[%clk 0:00:17]} 29. Qe5 {[%clk 0:01:56]}  Be4+ {[%clk 0:00:15]} 30. Rxe4 {[%clk 0:01:49]}  fxe4 {[%clk 0:00:15]} 31. Qxe4 {[%clk 0:01:49]}  Rd6 {[%clk 0:00:13]} 32. Re3 {[%clk 0:01:49]}  Kf8 {[%clk 0:00:09]} 33. Qe5 {[%clk 0:01:49]}  Ke8 {[%clk 0:00:10]} 34. Qh8+ {[%clk 0:01:46]}  Qf8 {[%clk 0:00:10]} 35. Qe5 {[%clk 0:01:35]}  Qf5+ {[%clk 0:00:09]} 36. Qxf5 {[%clk 0:01:35]}  gxf5 {[%clk 0:00:10]} 37. Rg3 {[%clk 0:01:31]}  Rxe6 {[%clk 0:00:10]} 38. Rg8+ {[%clk 0:01:31]}  Kd7 {[%clk 0:00:09]} 39. Rg7+ {[%clk 0:01:32]}  Kc6 {[%clk 0:00:10]} 40. Rxh7 {[%clk 0:01:32]}  Rg6 {[%clk 0:00:10]} 41. Kd3 {[%clk 0:01:23]}  Rxg2 {[%clk 0:00:10]} 42. Rg7 {[%clk 0:01:20]}  Rh2 {[%clk 0:00:10]} 43. h7 {[%clk 0:01:20]}  Rh4 {[%clk 0:00:10]} 44. c4 {[%clk 0:01:16]}  a5 {[%clk 0:00:09]} 45. b3 {[%clk 0:01:16]}  b6 {[%clk 0:00:09]} 46. Ke3 {[%clk 0:01:14]}  Kc5 {[%clk 0:00:08]} 47. Kf3 {[%clk 0:01:03]}  a4 {[%clk 0:00:08]} 48. Kg3 {[%clk 0:01:02]}  Rh1 {[%clk 0:00:08]} 49. Kf4 {[%clk 0:00:58]}  axb3 {[%clk 0:00:07]} 50. axb3 {[%clk 0:00:59]}  Rh5 {[%clk 0:00:06]} 51. Rb7 {[%clk 0:00:56]}  Kc6 {[%clk 0:00:04]} 52. Rf7 {[%clk 0:00:55]}  Rh4+ {[%clk 0:00:01]} 53. Kxf5 {[%clk 0:00:55]}  Rh3 {[%clk 0:00:02]} 54. Kg5 {[%clk 0:00:52]}  Rh1 {[%clk 0:00:02]} 55. Rf6+ {[%clk 0:00:52]} 1-0


[Site "https://www.chess.com"]

[Event "Titled Tuesday Blitz March 08 Early 2022"]
[White "Soderstrom, Adrian"]
[Black "Goltseva, Ekaterina"]
[WhiteFideId "1745786"]
[BlackFideId "24173770"]
[WhiteElo "2107"]
[BlackElo "2140"]
[Result "1/2-1/2"]
[Round "07"]
[TimeControl "180+1"]
[Date "2022.03.09"]
[WhiteClock "0:00:05"]
[BlackClock "0:00:05"]

1. d4 {[%clk 0:03:00]}  d5 {[%clk 0:02:54]} 2. c4 {[%clk 0:03:00]}  dxc4 {[%clk 0:02:52]} 3. e4 {[%clk 0:03:00]}  b5 {[%clk 0:02:51]} 4. a4 {[%clk 0:02:58]}  c6 {[%clk 0:02:50]} 5. axb5 {[%clk 0:02:57]}  cxb5 {[%clk 0:02:51]} 6. Nc3 {[%clk 0:02:57]}  a6 {[%clk 0:02:52]} 7. Nxb5 {[%clk 0:02:57]}  axb5 {[%clk 0:02:53]} 8. Rxa8 {[%clk 0:02:58]}  Bb7 {[%clk 0:02:54]} 9. Ra2 {[%clk 0:02:54]}  e6 {[%clk 0:02:54]} 10. b3 {[%clk 0:02:46]}  Bb4+ {[%clk 0:02:50]} 11. Bd2 {[%clk 0:02:46]}  c3 {[%clk 0:02:48]} 12. Bxb5+ {[%clk 0:02:43]}  Kf8 {[%clk 0:02:35]} 13. Nf3 {[%clk 0:02:30]}  cxd2+ {[%clk 0:02:34]} 14. Ke2 {[%clk 0:02:30]}  Nc6 {[%clk 0:02:25]} 15. Rxd2 {[%clk 0:02:15]}  Bxd2 {[%clk 0:02:21]} 16. Qxd2 {[%clk 0:02:16]}  Nf6 {[%clk 0:02:15]} 17. Qc2 {[%clk 0:01:58]}  Qb6 {[%clk 0:01:57]} 18. Bxc6 {[%clk 0:01:30]}  Bxc6 {[%clk 0:01:55]} 19. Rc1 {[%clk 0:01:23]}  Bb5+ {[%clk 0:01:51]} 20. Ke3 {[%clk 0:01:18]}  g6 {[%clk 0:01:45]} 21. Ne5 {[%clk 0:01:10]}  Kg7 {[%clk 0:01:29]} 22. Qc7 {[%clk 0:01:03]}  Qxc7 {[%clk 0:01:08]} 23. Rxc7 {[%clk 0:01:04]}  Rf8 {[%clk 0:01:05]} 24. b4 {[%clk 0:01:05]}  Ne8 {[%clk 0:00:56]} 25. Rb7 {[%clk 0:01:02]}  Nd6 {[%clk 0:00:52]} 26. Rb6 {[%clk 0:00:58]}  Nc4+ {[%clk 0:00:44]} 27. Nxc4 {[%clk 0:00:57]}  Bxc4 {[%clk 0:00:45]} 28. b5 {[%clk 0:00:54]}  Ra8 {[%clk 0:00:44]} 29. Rb7 {[%clk 0:00:47]}  Ra3+ {[%clk 0:00:42]} 30. Kf4 {[%clk 0:00:47]}  Rb3 {[%clk 0:00:31]} 31. b6 {[%clk 0:00:46]}  Kf6 {[%clk 0:00:31]} 32. h4 {[%clk 0:00:36]}  h6 {[%clk 0:00:28]} 33. Rc7 {[%clk 0:00:28]}  g5+ {[%clk 0:00:24]} 34. hxg5+ {[%clk 0:00:28]}  hxg5+ {[%clk 0:00:25]} 35. Kg4 {[%clk 0:00:29]}  Be2+ {[%clk 0:00:23]} 36. f3 {[%clk 0:00:29]}  Rxb6 {[%clk 0:00:23]} 37. Rc5 {[%clk 0:00:25]}  Rb5 {[%clk 0:00:20]} 38. Rc2 {[%clk 0:00:11]}  Bd3 {[%clk 0:00:19]} 39. Rc3 {[%clk 0:00:07]}  Bf1 {[%clk 0:00:18]} 40. g3 {[%clk 0:00:06]}  Ra5 {[%clk 0:00:16]} 41. f4 {[%clk 0:00:06]}  gxf4 {[%clk 0:00:15]} 42. gxf4 {[%clk 0:00:07]}  Bb5 {[%clk 0:00:13]} 43. Kf3 {[%clk 0:00:03]}  Ra2 {[%clk 0:00:09]} 44. Rc5 {[%clk 0:00:03]}  Be2+ {[%clk 0:00:08]} 45. Ke3 {[%clk 0:00:03]}  Bd1 {[%clk 0:00:08]} 46. f5 {[%clk 0:00:03]}  Re2+ {[%clk 0:00:07]} 47. Kd3 {[%clk 0:00:03]}  exf5 {[%clk 0:00:04]} 48. Rxf5+ {[%clk 0:00:04]}  Ke6 {[%clk 0:00:04]} 49. Re5+ {[%clk 0:00:04]}  Kd6 {[%clk 0:00:03]} 50. Rd5+ {[%clk 0:00:05]}  Ke7 {[%clk 0:00:04]} 51. Re5+ {[%clk 0:00:05]}  Kf8 {[%clk 0:00:04]} 52. Rf5 {[%clk 0:00:05]}  Ra2 {[%clk 0:00:04]} 53. Rf4 {[%clk 0:00:05]}  Bc2+ {[%clk 0:00:04]} 54. Kc4 {[%clk 0:00:05]}  Ra4+ {[%clk 0:00:04]} 55. Kd5 {[%clk 0:00:05]}  Bb3+ {[%clk 0:00:04]} 56. Kd6 {[%clk 0:00:06]}  Rxd4+ {[%clk 0:00:04]} 57. Ke5 {[%clk 0:00:06]}  Ra4 {[%clk 0:00:05]} 58. Kf6 {[%clk 0:00:06]}  Bc2 {[%clk 0:00:04]} 59. e5 {[%clk 0:00:06]}  Rxf4+ {[%clk 0:00:04]} 60. Kg5 {[%clk 0:00:05]}  Rf5+ {[%clk 0:00:04]} 61. Kh6 {[%clk 0:00:05]}  Rxe5 {[%clk 0:00:05]} 1/2-1/2


[Site "https://www.chess.com"]

[Event "Titled Tuesday Blitz March 08 Early 2022"]
[White "Svane, Rasmus"]
[Black "Vakhlamov, Igor L."]
[WhiteFideId "4657101"]
[BlackFideId "24126748"]
[WhiteElo "2645"]
[BlackElo "2401"]
[Result "1/2-1/2"]
[Round "07"]
[TimeControl "180+1"]
[Date "2022.03.08"]
[WhiteClock "0:00:37"]
[BlackClock "0:00:12"]

1. Nf3 {[%clk 0:03:00]}  Nf6 {[%clk 0:02:58]} 2. g3 {[%clk 0:03:00]}  g6 {[%clk 0:02:58]} 3. Bg2 {[%clk 0:02:58]}  Bg7 {[%clk 0:02:53]} 4. O-O {[%clk 0:02:59]}  O-O {[%clk 0:02:52]} 5. d4 {[%clk 0:02:59]}  c5 {[%clk 0:02:46]} 6. dxc5 {[%clk 0:02:59]}  Na6 {[%clk 0:02:43]} 7. Be3 {[%clk 0:02:58]}  Qc7 {[%clk 0:02:41]} 8. Bd4 {[%clk 0:02:53]}  Nxc5 {[%clk 0:02:40]} 9. Nc3 {[%clk 0:02:52]}  a6 {[%clk 0:01:40]} 10. Rc1 {[%clk 0:02:40]}  d6 {[%clk 0:01:29]} 11. Bxf6 {[%clk 0:02:39]}  exf6 {[%clk 0:01:30]} 12. Nd5 {[%clk 0:02:39]}  Qd8 {[%clk 0:01:29]} 13. c4 {[%clk 0:02:38]}  Rb8 {[%clk 0:01:29]} 14. Nd4 {[%clk 0:02:37]}  f5 {[%clk 0:01:28]} 15. e3 {[%clk 0:02:38]}  Bd7 {[%clk 0:01:28]} 16. Qd2 {[%clk 0:02:36]}  Rc8 {[%clk 0:01:20]} 17. Rfd1 {[%clk 0:02:36]}  Re8 {[%clk 0:01:20]} 18. b3 {[%clk 0:02:36]}  Ne4 {[%clk 0:01:19]} 19. Qb4 {[%clk 0:02:34]}  Bc6 {[%clk 0:01:08]} 20. Nb6 {[%clk 0:02:18]}  Rc7 {[%clk 0:01:04]} 21. Nxc6 {[%clk 0:02:14]}  Rxc6 {[%clk 0:01:01]} 22. Nd5 {[%clk 0:02:11]}  Qc8 {[%clk 0:01:00]} 23. a4 {[%clk 0:02:08]}  h5 {[%clk 0:00:57]} 24. a5 {[%clk 0:02:05]}  h4 {[%clk 0:00:56]} 25. Nb6 {[%clk 0:01:55]}  Qc7 {[%clk 0:00:38]} 26. Rd3 {[%clk 0:01:55]}  Be5 {[%clk 0:00:36]} 27. Rcd1 {[%clk 0:01:54]}  Kg7 {[%clk 0:00:35]} 28. Qe1 {[%clk 0:01:42]}  Rh8 {[%clk 0:00:33]} 29. f4 {[%clk 0:01:27]}  Bf6 {[%clk 0:00:31]} 30. Nd5 {[%clk 0:01:27]}  Qd8 {[%clk 0:00:30]} 31. Nxf6 {[%clk 0:01:25]}  Qxf6 {[%clk 0:00:29]} 32. Rd4 {[%clk 0:01:23]}  hxg3 {[%clk 0:00:28]} 33. hxg3 {[%clk 0:01:23]}  Re8 {[%clk 0:00:23]} 34. Bxe4 {[%clk 0:01:21]}  fxe4 {[%clk 0:00:24]} 35. Rd5 {[%clk 0:01:19]}  Rh8 {[%clk 0:00:23]} 36. Qd2 {[%clk 0:01:17]}  Qe6 {[%clk 0:00:18]} 37. Qd4+ {[%clk 0:01:09]}  f6 {[%clk 0:00:17]} 38. Rxd6 {[%clk 0:00:56]}  Rxd6 {[%clk 0:00:16]} 39. Qxd6 {[%clk 0:00:57]}  Rh1+ {[%clk 0:00:16]} 40. Kf2 {[%clk 0:00:45]}  Rh2+ {[%clk 0:00:13]} 41. Ke1 {[%clk 0:00:39]}  Rh1+ {[%clk 0:00:07]} 42. Kf2 {[%clk 0:00:37]}  Rh2+ {[%clk 0:00:07]} 43. Kg1 {[%clk 0:00:38]}  Rh1+ {[%clk 0:00:07]} 44. Kxh1 {[%clk 0:00:38]}  Qh3+ {[%clk 0:00:07]} 45. Kg1 {[%clk 0:00:39]}  Qxg3+ {[%clk 0:00:08]} 46. Kf1 {[%clk 0:00:39]}  Qf3+ {[%clk 0:00:08]} 47. Ke1 {[%clk 0:00:39]}  Qxe3+ {[%clk 0:00:09]} 48. Kf1 {[%clk 0:00:39]}  Qf3+ {[%clk 0:00:09]} 49. Kg1 {[%clk 0:00:38]}  Qg3+ {[%clk 0:00:10]} 50. Kh1 {[%clk 0:00:36]}  Qh3+ {[%clk 0:00:10]} 51. Kg1 {[%clk 0:00:36]}  Qg3+ {[%clk 0:00:11]} 52. Kh1 {[%clk 0:00:37]}  Qh3+ {[%clk 0:00:11]} 53. Kg1 {[%clk 0:00:37]}  Qg3+ {[%clk 0:00:12]} 1/2-1/2


[Site "https://www.chess.com"]

[Event "Titled Tuesday Blitz March 08 Early 2022"]
[White "Talibov, Shiroghlan"]
[Black "Khismatullin, Denis"]
[WhiteFideId "13429078"]
[BlackFideId "4142578"]
[WhiteElo "2070"]
[BlackElo "2543"]
[Result "1/2-1/2"]
[Round "07"]
[TimeControl "180+1"]
[Date "2022.03.08"]
[WhiteClock "0:00:06"]
[BlackClock "0:00:40"]

1. g3 {[%clk 0:03:00]}  c5 {[%clk 0:02:58]} 2. c4 {[%clk 0:02:59]}  g6 {[%clk 0:02:59]} 3. Bg2 {[%clk 0:02:58]}  Bg7 {[%clk 0:03:00]} 4. Nc3 {[%clk 0:02:58]}  Nc6 {[%clk 0:03:01]} 5. e3 {[%clk 0:02:54]}  Nh6 {[%clk 0:03:01]} 6. Nge2 {[%clk 0:02:49]}  Nf5 {[%clk 0:03:01]} 7. e4 {[%clk 0:02:44]}  Nfd4 {[%clk 0:02:59]} 8. d3 {[%clk 0:02:44]}  d6 {[%clk 0:02:59]} 9. Nxd4 {[%clk 0:02:44]}  Nxd4 {[%clk 0:02:59]} 10. O-O {[%clk 0:02:43]}  O-O {[%clk 0:02:59]} 11. f4 {[%clk 0:02:42]}  Rb8 {[%clk 0:02:59]} 12. Be3 {[%clk 0:02:41]}  b5 {[%clk 0:02:58]} 13. b3 {[%clk 0:02:37]}  b4 {[%clk 0:02:44]} 14. Ne2 {[%clk 0:02:36]}  Bg4 {[%clk 0:02:43]} 15. Bxd4 {[%clk 0:02:20]}  Bxd4+ {[%clk 0:02:41]} 16. Nxd4 {[%clk 0:02:20]}  Bxd1 {[%clk 0:02:40]} 17. Nc6 {[%clk 0:02:20]}  Qc7 {[%clk 0:02:36]} 18. Nxb8 {[%clk 0:02:18]}  Be2 {[%clk 0:02:36]} 19. Rf2 {[%clk 0:02:15]}  Bg4 {[%clk 0:02:32]} 20. f5 {[%clk 0:02:13]}  Qxb8 {[%clk 0:02:24]} 21. h3 {[%clk 0:02:10]}  Bxh3 {[%clk 0:02:24]} 22. Bxh3 {[%clk 0:02:10]}  d5 {[%clk 0:02:25]} 23. exd5 {[%clk 0:02:02]}  Qxg3+ {[%clk 0:02:24]} 24. Bg2 {[%clk 0:02:02]}  Qxd3 {[%clk 0:02:21]} 25. Re1 {[%clk 0:02:01]}  a5 {[%clk 0:01:37]} 26. Rxe7 {[%clk 0:01:42]}  Qd4 {[%clk 0:01:37]} 27. Re4 {[%clk 0:01:34]}  Qd1+ {[%clk 0:01:33]} 28. Rf1 {[%clk 0:01:28]}  Qd3 {[%clk 0:01:33]} 29. Rf2 {[%clk 0:01:07]}  h5 {[%clk 0:01:28]} 30. Kh2 {[%clk 0:01:02]}  g5 {[%clk 0:01:27]} 31. f6 {[%clk 0:01:00]}  Kh7 {[%clk 0:01:22]} 32. Ree2 {[%clk 0:00:28]}  Kh6 {[%clk 0:01:20]} 33. Rd2 {[%clk 0:00:27]}  Qe3 {[%clk 0:01:20]} 34. Rde2 {[%clk 0:00:22]}  Qc3 {[%clk 0:01:17]} 35. Rc2 {[%clk 0:00:20]}  Qe5+ {[%clk 0:01:15]} 36. Kg1 {[%clk 0:00:20]}  Re8 {[%clk 0:01:16]} 37. Rcd2 {[%clk 0:00:17]}  Qg3 {[%clk 0:01:12]} 38. Kf1 {[%clk 0:00:15]}  h4 {[%clk 0:01:11]} 39. d6 {[%clk 0:00:14]}  h3 {[%clk 0:01:09]} 40. Bc6 {[%clk 0:00:14]}  Rd8 {[%clk 0:01:02]} 41. Rf3 {[%clk 0:00:14]}  Qh4 {[%clk 0:00:58]} 42. Rfd3 {[%clk 0:00:12]}  Qf4+ {[%clk 0:00:52]} 43. Rf2 {[%clk 0:00:11]}  Qc1+ {[%clk 0:00:51]} 44. Ke2 {[%clk 0:00:11]}  g4 {[%clk 0:00:50]} 45. d7 {[%clk 0:00:09]}  Kg5 {[%clk 0:00:50]} 46. Rd5+ {[%clk 0:00:08]}  Kh4 {[%clk 0:00:50]} 47. Rxc5 {[%clk 0:00:07]}  g3 {[%clk 0:00:47]} 48. Rff5 {[%clk 0:00:05]}  g2 {[%clk 0:00:47]} 49. Rh5+ {[%clk 0:00:04]}  Kg3 {[%clk 0:00:47]} 50. Rcg5+ {[%clk 0:00:04]}  Kf4 {[%clk 0:00:46]} 51. Rf5+ {[%clk 0:00:04]}  Kg3 {[%clk 0:00:46]} 52. Rfg5+ {[%clk 0:00:05]}  Kf4 {[%clk 0:00:41]} 53. Rf5+ {[%clk 0:00:05]}  Kg3 {[%clk 0:00:40]} 54. Rfg5+ {[%clk 0:00:06]} 1/2-1/2


[Site "https://www.chess.com"]

[Event "Titled Tuesday Blitz March 08 Early 2022"]
[White "Tarhan, Adar"]
[Black "Spata, German"]
[WhiteFideId "34544712"]
[BlackFideId "113026"]
[WhiteElo "1802"]
[BlackElo "2238"]
[Result "1-0"]
[Round "07"]
[TimeControl "180+1"]
[Date "2022.03.09"]
[WhiteClock "0:02:32"]
[BlackClock "0:01:26"]

1. d4 {[%clk 0:03:00]}  e6 {[%clk 0:03:00]} 2. c4 {[%clk 0:02:59]}  d5 {[%clk 0:02:53]} 3. Nc3 {[%clk 0:03:00]}  Nf6 {[%clk 0:02:52]} 4. Bg5 {[%clk 0:02:59]}  Be7 {[%clk 0:02:51]} 5. cxd5 {[%clk 0:03:00]}  Nxd5 {[%clk 0:02:51]} 6. Bxe7 {[%clk 0:03:00]}  Qxe7 {[%clk 0:02:52]} 7. e3 {[%clk 0:03:00]}  O-O {[%clk 0:02:51]} 8. Nf3 {[%clk 0:03:00]}  Nxc3 {[%clk 0:02:45]} 9. bxc3 {[%clk 0:03:00]}  b6 {[%clk 0:02:46]} 10. Bd3 {[%clk 0:03:00]}  Bb7 {[%clk 0:02:46]} 11. h4 {[%clk 0:02:57]}  h6 {[%clk 0:02:45]} 12. e4 {[%clk 0:02:53]}  Nd7 {[%clk 0:02:44]} 13. e5 {[%clk 0:02:52]}  f6 {[%clk 0:02:39]} 14. Qe2 {[%clk 0:02:51]}  Bxf3 {[%clk 0:02:36]} 15. gxf3 {[%clk 0:02:52]}  fxe5 {[%clk 0:02:36]} 16. dxe5 {[%clk 0:02:50]}  Qc5 {[%clk 0:02:27]} 17. Rd1 {[%clk 0:02:40]}  Qxc3+ {[%clk 0:02:22]} 18. Kf1 {[%clk 0:02:38]}  Qxe5 {[%clk 0:02:18]} 19. Be4 {[%clk 0:02:38]}  Kh8 {[%clk 0:01:26]} 20. Bxa8 {[%clk 0:02:32]} 1-0


[Site "https://www.chess.com"]

[Event "Titled Tuesday Blitz March 08 Early 2022"]
[White "Tasev, Dejan"]
[Black "Bettalli, Francesco"]
[WhiteFideId "936618"]
[BlackFideId "2816453"]
[WhiteElo "2253"]
[BlackElo "2216"]
[Result "0-1"]
[Round "07"]
[TimeControl "180+1"]
[Date "2022.03.09"]
[WhiteClock "0:00:05"]
[BlackClock "0:00:12"]

1. e4 {[%clk 0:02:59]}  e5 {[%clk 0:02:54]} 2. Nf3 {[%clk 0:02:58]}  Nf6 {[%clk 0:02:53]} 3. Nxe5 {[%clk 0:02:58]}  Nc6 {[%clk 0:02:43]} 4. Nf3 {[%clk 0:02:58]}  Nxe4 {[%clk 0:02:42]} 5. Nc3 {[%clk 0:02:58]}  Nxc3 {[%clk 0:02:42]} 6. dxc3 {[%clk 0:02:57]}  d5 {[%clk 0:02:43]} 7. Bf4 {[%clk 0:02:56]}  Bg4 {[%clk 0:02:41]} 8. Be2 {[%clk 0:02:56]}  Bd6 {[%clk 0:02:40]} 9. Be3 {[%clk 0:02:53]}  O-O {[%clk 0:02:40]} 10. Qxd5 {[%clk 0:02:47]}  Re8 {[%clk 0:02:29]} 11. Qd2 {[%clk 0:02:24]}  Bxf3 {[%clk 0:02:24]} 12. gxf3 {[%clk 0:02:16]}  Qh4 {[%clk 0:01:59]} 13. O-O-O {[%clk 0:02:09]}  Qa4 {[%clk 0:01:55]} 14. Kb1 {[%clk 0:02:06]}  Rad8 {[%clk 0:01:54]} 15. Qe1 {[%clk 0:01:56]}  Ne5 {[%clk 0:01:48]} 16. Rd4 {[%clk 0:01:33]}  Qa5 {[%clk 0:01:43]} 17. Qd2 {[%clk 0:01:20]}  Nc6 {[%clk 0:01:38]} 18. Rd5 {[%clk 0:01:13]}  Qa4 {[%clk 0:01:35]} 19. b3 {[%clk 0:01:09]}  Qh4 {[%clk 0:01:00]} 20. Bg5 {[%clk 0:00:59]}  Qxf2 {[%clk 0:00:46]} 21. Bxd8 {[%clk 0:00:52]}  Rxe2 {[%clk 0:00:43]} 22. Qd3 {[%clk 0:00:44]}  Nxd8 {[%clk 0:00:37]} 23. Kb2 {[%clk 0:00:43]}  Ne6 {[%clk 0:00:35]} 24. Rc1 {[%clk 0:00:38]}  Nf4 {[%clk 0:00:32]} 25. Qc4 {[%clk 0:00:29]}  Nxd5 {[%clk 0:00:31]} 26. Qxd5 {[%clk 0:00:29]}  h6 {[%clk 0:00:29]} 27. Qxb7 {[%clk 0:00:27]}  Qe3 {[%clk 0:00:20]} 28. Qc8+ {[%clk 0:00:26]}  Qe8 {[%clk 0:00:21]} 29. Qf5 {[%clk 0:00:25]}  Qe6 {[%clk 0:00:21]} 30. Qd3 {[%clk 0:00:23]}  Rxh2 {[%clk 0:00:20]} 31. a4 {[%clk 0:00:23]}  Rh5 {[%clk 0:00:18]} 32. Qa6 {[%clk 0:00:21]}  Bc5 {[%clk 0:00:15]} 33. Qb7 {[%clk 0:00:20]}  Rf5 {[%clk 0:00:13]} 34. Qa8+ {[%clk 0:00:20]}  Kh7 {[%clk 0:00:13]} 35. Rd1 {[%clk 0:00:20]}  h5 {[%clk 0:00:11]} 36. Rd8 {[%clk 0:00:20]}  Kg6 {[%clk 0:00:11]} 37. f4 {[%clk 0:00:20]}  Rxf4 {[%clk 0:00:11]} 38. Qg2+ {[%clk 0:00:19]}  Rg4 {[%clk 0:00:09]} 39. Qb7 {[%clk 0:00:17]}  Be7 {[%clk 0:00:09]} 40. Rd3 {[%clk 0:00:16]}  Bf6 {[%clk 0:00:09]} 41. Qxc7 {[%clk 0:00:16]}  h4 {[%clk 0:00:08]} 42. Qxa7 {[%clk 0:00:15]}  Qe5 {[%clk 0:00:08]} 43. Qd7 {[%clk 0:00:14]}  Rg3 {[%clk 0:00:08]} 44. Rxg3+ {[%clk 0:00:11]}  hxg3 {[%clk 0:00:09]} 45. Qg4+ {[%clk 0:00:11]}  Kh6 {[%clk 0:00:09]} 46. Qh3+ {[%clk 0:00:11]}  Kg5 {[%clk 0:00:10]} 47. Qg2 {[%clk 0:00:08]}  Qxc3+ {[%clk 0:00:10]} 48. Ka3 {[%clk 0:00:07]}  Be7+ {[%clk 0:00:10]} 49. Ka2 {[%clk 0:00:08]}  Qe3 {[%clk 0:00:10]} 50. Qd5+ {[%clk 0:00:08]}  f5 {[%clk 0:00:10]} 51. Qf7 {[%clk 0:00:07]}  Kg4 {[%clk 0:00:08]} 52. Qxg7+ {[%clk 0:00:07]}  Bg5 {[%clk 0:00:08]} 53. Qb7 {[%clk 0:00:06]}  Qf3 {[%clk 0:00:09]} 54. Qc8 {[%clk 0:00:05]}  g2 {[%clk 0:00:09]} 55. Qc4+ {[%clk 0:00:05]}  f4 {[%clk 0:00:09]} 56. Qe6+ {[%clk 0:00:05]}  Kg3 {[%clk 0:00:09]} 57. Qb6 {[%clk 0:00:04]}  Qf2 {[%clk 0:00:09]} 58. Qb5 {[%clk 0:00:04]}  g1=Q {[%clk 0:00:09]} 59. Qxg5+ {[%clk 0:00:03]}  Kf3 {[%clk 0:00:10]} 60. Qd5+ {[%clk 0:00:03]}  Ke2 {[%clk 0:00:10]} 61. Qd3+ {[%clk 0:00:04]}  Ke1 {[%clk 0:00:11]} 62. Kb2 {[%clk 0:00:04]}  Qd4+ {[%clk 0:00:10]} 63. Qxd4 {[%clk 0:00:04]}  Qxd4+ {[%clk 0:00:11]} 64. c3 {[%clk 0:00:04]}  Qd2+ {[%clk 0:00:12]} 65. Ka3 {[%clk 0:00:05]}  Qxc3 {[%clk 0:00:12]} 66. a5 {[%clk 0:00:05]}  Qxa5+ {[%clk 0:00:12]} 0-1


[Site "https://www.chess.com"]